[Event "Titled Tuesday Blitz January 31 Late 2023"]
[White "CheckBits"]
[Black "Cori T., Deysi"]
[BlackFideId "3801934"]
[WhiteElo "2478"]
[BlackElo "2362"]
[Result "1/2-1/2"]
[Round "02"]
[TimeControl "180+2"]
[Date "2023.01.31"]
[WhiteClock "0:00:13"]
[BlackClock "0:00:20"]

1. e4 {[%clk 0:02:57]}  e6 {[%clk 0:02:59]} 2. d4 {[%clk 0:02:55]}  d5 {[%clk 0:02:59]} 3. e5 {[%clk 0:02:55]}  c5 {[%clk 0:02:59]} 4. c3 {[%clk 0:02:55]}  Nc6 {[%clk 0:02:59]} 5. Nf3 {[%clk 0:02:56]}  Bd7 {[%clk 0:03:00]} 6. Be2 {[%clk 0:02:50]}  Nge7 {[%clk 0:02:59]} 7. Na3 {[%clk 0:02:50]}  cxd4 {[%clk 0:02:54]} 8. cxd4 {[%clk 0:02:48]}  Nf5 {[%clk 0:02:55]} 9. Nc2 {[%clk 0:02:48]}  Qb6 {[%clk 0:02:55]} 10. O-O {[%clk 0:02:41]}  Na5 {[%clk 0:02:55]} 11. b4 {[%clk 0:02:22]}  Nc4 {[%clk 0:02:54]} 12. g4 {[%clk 0:02:14]}  Ne7 {[%clk 0:02:52]} 13. a4 {[%clk 0:02:14]}  h5 {[%clk 0:02:47]} 14. gxh5 {[%clk 0:02:01]}  Nf5 {[%clk 0:02:47]} 15. b5 {[%clk 0:01:57]}  a6 {[%clk 0:02:46]} 16. bxa6 {[%clk 0:01:28]}  Rxa6 {[%clk 0:02:46]} 17. Ne3 {[%clk 0:01:24]}  Nfxe3 {[%clk 0:02:30]} 18. Bxe3 {[%clk 0:01:21]}  Qd8 {[%clk 0:02:25]} 19. Bg5 {[%clk 0:01:04]}  Be7 {[%clk 0:02:25]} 20. h4 {[%clk 0:00:57]}  Rxh5 {[%clk 0:02:20]} 21. Kg2 {[%clk 0:00:35]}  Bxg5 {[%clk 0:02:17]} 22. hxg5 {[%clk 0:00:32]}  Rxg5+ {[%clk 0:02:17]} 23. Nxg5 {[%clk 0:00:25]}  Qxg5+ {[%clk 0:02:18]} 24. Kh3 {[%clk 0:00:15]}  Qh6+ {[%clk 0:02:16]} 25. Kg3 {[%clk 0:00:15]}  Qg5+ {[%clk 0:02:16]} 26. Kh3 {[%clk 0:00:15]}  Qh6+ {[%clk 0:02:03]} 27. Kg2 {[%clk 0:00:14]}  Qg6+ {[%clk 0:01:57]} 28. Kh3 {[%clk 0:00:13]}  Qh6+ {[%clk 0:00:20]} 1/2-1/2


[Site "https://www.chess.com"]

[Event "Titled Tuesday Blitz January 31 Late 2023"]
[White "Polanco Nunez, Yoel Estarling"]
[Black "Filgueira, Hernan"]
[WhiteFideId "6401783"]
[BlackFideId "101770"]
[WhiteElo "2162"]
[BlackElo "2283"]
[Result "0-1"]
[Round "02"]
[TimeControl "180+2"]
[Date "2023.01.31"]
[WhiteClock "0:00:45"]
[BlackClock "0:00:54"]

1. d4 {[%clk 0:02:59]}  d5 {[%clk 0:02:59]} 2. c4 {[%clk 0:02:58]}  e6 {[%clk 0:02:58]} 3. Nf3 {[%clk 0:02:58]}  c5 {[%clk 0:02:58]} 4. cxd5 {[%clk 0:02:58]}  exd5 {[%clk 0:02:57]} 5. Nc3 {[%clk 0:02:58]}  Nc6 {[%clk 0:02:57]} 6. e3 {[%clk 0:02:51]}  Nf6 {[%clk 0:02:56]} 7. Be2 {[%clk 0:02:50]}  Bd6 {[%clk 0:02:55]} 8. dxc5 {[%clk 0:02:48]}  Bxc5 {[%clk 0:02:55]} 9. O-O {[%clk 0:02:49]}  O-O {[%clk 0:02:56]} 10. b3 {[%clk 0:02:48]}  Re8 {[%clk 0:02:52]} 11. Bb2 {[%clk 0:02:48]}  a6 {[%clk 0:02:53]} 12. Rc1 {[%clk 0:02:47]}  Ba7 {[%clk 0:02:53]} 13. Na4 {[%clk 0:02:44]}  Ne4 {[%clk 0:02:47]} 14. Nd4 {[%clk 0:02:42]}  Bd7 {[%clk 0:02:43]} 15. Nxc6 {[%clk 0:02:32]}  Bxc6 {[%clk 0:02:42]} 16. Nc3 {[%clk 0:02:32]}  Qf6 {[%clk 0:01:57]} 17. Ba1 {[%clk 0:02:16]}  Qh6 {[%clk 0:01:55]} 18. Bf3 {[%clk 0:01:43]}  Rad8 {[%clk 0:01:46]} 19. Re1 {[%clk 0:01:26]}  Nxf2 {[%clk 0:01:37]} 20. Kxf2 {[%clk 0:01:22]}  Rxe3 {[%clk 0:01:34]} 21. Rxe3 {[%clk 0:00:53]}  Qxe3+ {[%clk 0:01:28]} 22. Kg3 {[%clk 0:00:53]}  Bb8+ {[%clk 0:01:01]} 23. Kh3 {[%clk 0:00:51]}  Qh6+ {[%clk 0:00:56]} 24. Bh5 {[%clk 0:00:49]}  Bd7+ {[%clk 0:00:55]} 25. Kh4 {[%clk 0:00:45]}  g5# {[%clk 0:00:54]} 0-1


[Site "https://www.chess.com"]

[Event "Titled Tuesday Blitz January 31 Late 2023"]
[White "Hirneise, Jens"]
[Black "Good, Daniel"]
[WhiteFideId "24614734"]
[BlackFideId "1302388"]
[WhiteElo "2277"]
[BlackElo "2141"]
[Result "1-0"]
[Round "02"]
[TimeControl "180+2"]
[Date "2023.01.31"]
[WhiteClock "0:00:26"]
[BlackClock "0:00:02"]

1. d4 {[%clk 0:03:00]}  Nf6 {[%clk 0:02:56]} 2. Nc3 {[%clk 0:03:00]}  d5 {[%clk 0:02:52]} 3. Bf4 {[%clk 0:02:58]}  e6 {[%clk 0:02:48]} 4. Nb5 {[%clk 0:02:55]}  Na6 {[%clk 0:02:48]} 5. c3 {[%clk 0:02:54]}  c6 {[%clk 0:02:46]} 6. Na3 {[%clk 0:02:52]}  Ne4 {[%clk 0:02:12]} 7. Nc2 {[%clk 0:02:47]}  Qb6 {[%clk 0:02:03]} 8. Rb1 {[%clk 0:02:40]}  c5 {[%clk 0:02:03]} 9. e3 {[%clk 0:02:35]}  Be7 {[%clk 0:01:57]} 10. h4 {[%clk 0:02:31]}  Qa5 {[%clk 0:01:36]} 11. a3 {[%clk 0:02:26]}  Bd7 {[%clk 0:01:33]} 12. Bd3 {[%clk 0:02:20]}  c4 {[%clk 0:01:28]} 13. Bxe4 {[%clk 0:02:19]}  dxe4 {[%clk 0:01:29]} 14. Ne2 {[%clk 0:02:02]}  Nc7 {[%clk 0:01:20]} 15. Ng3 {[%clk 0:01:45]}  Bc6 {[%clk 0:01:12]} 16. h5 {[%clk 0:01:41]}  Nd5 {[%clk 0:01:12]} 17. Qg4 {[%clk 0:01:36]}  Nxf4 {[%clk 0:01:02]} 18. exf4 {[%clk 0:01:30]}  Rg8 {[%clk 0:01:00]} 19. Ne3 {[%clk 0:01:25]}  f5 {[%clk 0:00:49]} 20. Qe2 {[%clk 0:01:24]}  b5 {[%clk 0:00:41]} 21. Ngf1 {[%clk 0:01:21]}  Bd6 {[%clk 0:00:39]} 22. g3 {[%clk 0:01:17]}  Qb6 {[%clk 0:00:38]} 23. Nd2 {[%clk 0:01:13]}  a5 {[%clk 0:00:37]} 24. Kf1 {[%clk 0:01:10]}  Kd7 {[%clk 0:00:33]} 25. Kg1 {[%clk 0:01:08]}  Rae8 {[%clk 0:00:25]} 26. Rd1 {[%clk 0:01:07]}  g5 {[%clk 0:00:25]} 27. hxg6 {[%clk 0:01:07]}  hxg6 {[%clk 0:00:26]} 28. Rh7+ {[%clk 0:01:05]}  Re7 {[%clk 0:00:26]} 29. Rxe7+ {[%clk 0:01:04]}  Kxe7 {[%clk 0:00:27]} 30. Kg2 {[%clk 0:01:04]}  Rh8 {[%clk 0:00:26]} 31. Rh1 {[%clk 0:01:04]}  Rxh1 {[%clk 0:00:26]} 32. Kxh1 {[%clk 0:01:05]}  Qd8 {[%clk 0:00:22]} 33. Kg1 {[%clk 0:01:03]}  Qh8 {[%clk 0:00:22]} 34. a4 {[%clk 0:01:02]}  g5 {[%clk 0:00:16]} 35. axb5 {[%clk 0:00:53]}  Bxb5 {[%clk 0:00:16]} 36. fxg5 {[%clk 0:00:54]}  f4 {[%clk 0:00:16]} 37. Nxe4 {[%clk 0:00:39]}  Bc6 {[%clk 0:00:14]} 38. Nxc4 {[%clk 0:00:36]}  fxg3 {[%clk 0:00:10]} 39. fxg3 {[%clk 0:00:31]}  Bxe4 {[%clk 0:00:02]} 40. Qxe4 {[%clk 0:00:32]}  Bxg3 {[%clk 0:00:02]} 41. Qb7+ {[%clk 0:00:32]}  Kf8 {[%clk 0:00:02]} 42. Qc8+ {[%clk 0:00:32]}  Kg7 {[%clk 0:00:02]} 43. Qxh8+ {[%clk 0:00:32]}  Kxh8 {[%clk 0:00:03]} 44. Nxa5 {[%clk 0:00:32]}  Bf4 {[%clk 0:00:04]} 45. Nc4 {[%clk 0:00:30]}  Bxg5 {[%clk 0:00:04]} 46. Kg2 {[%clk 0:00:30]}  Kg7 {[%clk 0:00:04]} 47. Kf3 {[%clk 0:00:31]}  Kf6 {[%clk 0:00:04]} 48. Ke4 {[%clk 0:00:31]}  Bc1 {[%clk 0:00:05]} 49. b4 {[%clk 0:00:30]}  Bg5 {[%clk 0:00:04]} 50. b5 {[%clk 0:00:30]}  Ke7 {[%clk 0:00:02]} 51. Ne5 {[%clk 0:00:26]} 1-0


[Site "https://www.chess.com"]

[Event "Titled Tuesday Blitz January 31 Late 2023"]
[White "Licznerski, Lukasz"]
[Black "Urbina Quiroz, Edwin"]
[WhiteFideId "1179250"]
[BlackFideId "6500650"]
[WhiteElo "2460"]
[BlackElo "2129"]
[Result "1-0"]
[Round "02"]
[TimeControl "180+2"]
[Date "2023.01.31"]
[WhiteClock "0:00:09"]
[BlackClock "0:00:03"]

1. e4 {[%clk 0:03:00]}  e5 {[%clk 0:02:59]} 2. Nf3 {[%clk 0:02:58]}  Nc6 {[%clk 0:03:00]} 3. Bb5 {[%clk 0:02:49]}  a6 {[%clk 0:02:59]} 4. Bxc6 {[%clk 0:02:44]}  dxc6 {[%clk 0:02:59]} 5. O-O {[%clk 0:02:44]}  Bg4 {[%clk 0:02:58]} 6. h3 {[%clk 0:02:44]}  h5 {[%clk 0:02:58]} 7. d3 {[%clk 0:02:44]}  Qf6 {[%clk 0:02:58]} 8. Be3 {[%clk 0:02:44]}  Ne7 {[%clk 0:02:57]} 9. Nbd2 {[%clk 0:02:44]}  Ng6 {[%clk 0:02:54]} 10. Re1 {[%clk 0:02:24]}  Nf4 {[%clk 0:02:43]} 11. Bxf4 {[%clk 0:02:11]}  Qxf4 {[%clk 0:02:39]} 12. hxg4 {[%clk 0:01:24]}  hxg4 {[%clk 0:02:40]} 13. Nxe5 {[%clk 0:01:13]}  Bc5 {[%clk 0:00:52]} 14. Nxg4 {[%clk 0:00:50]}  O-O-O {[%clk 0:00:52]} 15. Ne3 {[%clk 0:00:38]}  f5 {[%clk 0:00:11]} 16. Qf3 {[%clk 0:00:31]}  Bxe3 {[%clk 0:00:07]} 17. fxe3 {[%clk 0:00:22]}  Qh4 {[%clk 0:00:05]} 18. Qxf5+ {[%clk 0:00:14]}  Kb8 {[%clk 0:00:05]} 19. Nf3 {[%clk 0:00:11]}  Qg3 {[%clk 0:00:03]} 20. Qg5 {[%clk 0:00:09]} 1-0


[Site "https://www.chess.com"]

[Event "Titled Tuesday Blitz January 31 Late 2023"]
[White "Rengifo Blancas, Renzo Jhonathan"]
[Black "Do Valle Cardoso, Lucas"]
[WhiteFideId "3807185"]
[BlackFideId "2163144"]
[WhiteElo "2131"]
[BlackElo "2250"]
[Result "1/2-1/2"]
[Round "02"]
[TimeControl "180+2"]
[Date "2023.01.31"]
[WhiteClock "0:00:10"]
[BlackClock "0:00:07"]

1. e4 {[%clk 0:03:00]}  c5 {[%clk 0:02:59]} 2. c3 {[%clk 0:03:00]}  d6 {[%clk 0:02:56]} 3. d4 {[%clk 0:03:00]}  cxd4 {[%clk 0:02:57]} 4. cxd4 {[%clk 0:03:01]}  Nf6 {[%clk 0:02:58]} 5. Nc3 {[%clk 0:03:00]}  e6 {[%clk 0:02:58]} 6. f4 {[%clk 0:03:00]}  Be7 {[%clk 0:02:56]} 7. Nf3 {[%clk 0:02:54]}  O-O {[%clk 0:02:54]} 8. Bd3 {[%clk 0:02:54]}  a6 {[%clk 0:02:50]} 9. O-O {[%clk 0:02:54]}  b5 {[%clk 0:02:47]} 10. e5 {[%clk 0:02:54]}  dxe5 {[%clk 0:02:44]} 11. fxe5 {[%clk 0:02:54]}  Nd5 {[%clk 0:02:45]} 12. Qe2 {[%clk 0:02:07]}  Bb7 {[%clk 0:02:42]} 13. Ne4 {[%clk 0:01:59]}  Nc6 {[%clk 0:02:40]} 14. Neg5 {[%clk 0:01:46]}  g6 {[%clk 0:02:33]} 15. Qf2 {[%clk 0:01:04]}  Ndb4 {[%clk 0:01:35]} 16. Qh4 {[%clk 0:00:44]}  h5 {[%clk 0:01:35]} 17. Bb1 {[%clk 0:00:28]}  Rc8 {[%clk 0:01:15]} 18. a3 {[%clk 0:00:26]}  Nxd4 {[%clk 0:01:03]} 19. Qxd4 {[%clk 0:00:22]}  Bc5 {[%clk 0:01:02]} 20. Qxc5 {[%clk 0:00:18]}  Rxc5 {[%clk 0:01:03]} 21. axb4 {[%clk 0:00:18]}  Rxc1 {[%clk 0:01:02]} 22. Rxc1 {[%clk 0:00:18]}  Qb6+ {[%clk 0:00:54]} 23. Kh1 {[%clk 0:00:17]}  h4 {[%clk 0:00:49]} 24. Be4 {[%clk 0:00:18]}  h3 {[%clk 0:00:45]} 25. gxh3 {[%clk 0:00:17]}  Bxe4 {[%clk 0:00:44]} 26. Nxe4 {[%clk 0:00:17]}  Qe3 {[%clk 0:00:44]} 27. Nf6+ {[%clk 0:00:17]}  Kg7 {[%clk 0:00:45]} 28. Kg2 {[%clk 0:00:17]}  Rd8 {[%clk 0:00:43]} 29. Re1 {[%clk 0:00:17]}  Qf4 {[%clk 0:00:43]} 30. Rad1 {[%clk 0:00:16]}  Rxd1 {[%clk 0:00:37]} 31. Rxd1 {[%clk 0:00:17]}  Qxb4 {[%clk 0:00:03]} 32. Rd8 {[%clk 0:00:18]}  Qxb2+ {[%clk 0:00:03]} 33. Kg3 {[%clk 0:00:18]}  g5 {[%clk 0:00:04]} 34. Rg8+ {[%clk 0:00:17]}  Kh6 {[%clk 0:00:04]} 35. Ng4+ {[%clk 0:00:09]}  Kh7 {[%clk 0:00:05]} 36. Nf6+ {[%clk 0:00:09]}  Kh6 {[%clk 0:00:05]} 37. Ng4+ {[%clk 0:00:09]}  Kh7 {[%clk 0:00:06]} 38. Nf6+ {[%clk 0:00:10]}  Kh6 {[%clk 0:00:07]} 1/2-1/2


[Site "https://www.chess.com"]

[Event "Titled Tuesday Blitz January 31 Late 2023"]
[White "Tristan, Leonardo"]
[Black "Grot, Blazej"]
[WhiteFideId "113816"]
[BlackFideId "21835845"]
[WhiteElo "2545"]
[BlackElo "1990"]
[Result "1-0"]
[Round "02"]
[TimeControl "180+2"]
[Date "2023.01.31"]
[WhiteClock "0:02:12"]
[BlackClock "0:00:01"]

1. d4 {[%clk 0:03:00]}  d5 {[%clk 0:02:58]} 2. Nf3 {[%clk 0:03:01]}  Nf6 {[%clk 0:02:58]} 3. Bf4 {[%clk 0:03:01]}  Bf5 {[%clk 0:02:57]} 4. e3 {[%clk 0:03:02]}  e6 {[%clk 0:02:57]} 5. c4 {[%clk 0:03:02]}  c6 {[%clk 0:02:57]} 6. Nc3 {[%clk 0:03:01]}  Nbd7 {[%clk 0:02:55]} 7. Qb3 {[%clk 0:03:02]}  Qb6 {[%clk 0:02:53]} 8. c5 {[%clk 0:03:02]}  Qxb3 {[%clk 0:02:50]} 9. axb3 {[%clk 0:03:03]}  Be7 {[%clk 0:02:48]} 10. h3 {[%clk 0:03:03]}  O-O {[%clk 0:02:46]} 11. b4 {[%clk 0:03:04]}  Ne4 {[%clk 0:02:46]} 12. Nxe4 {[%clk 0:02:58]}  Bxe4 {[%clk 0:02:47]} 13. Nd2 {[%clk 0:02:59]}  Bg6 {[%clk 0:02:42]} 14. Nb3 {[%clk 0:02:57]}  Rfc8 {[%clk 0:02:35]} 15. Na5 {[%clk 0:02:51]}  b6 {[%clk 0:02:31]} 16. Ba6 {[%clk 0:02:51]}  bxa5 {[%clk 0:02:28]} 17. Bxc8 {[%clk 0:02:49]}  Rxc8 {[%clk 0:02:29]} 18. Rxa5 {[%clk 0:02:50]}  Ra8 {[%clk 0:02:24]} 19. Ke2 {[%clk 0:02:49]}  e5 {[%clk 0:01:20]} 20. dxe5 {[%clk 0:02:49]}  Bf5 {[%clk 0:01:18]} 21. g4 {[%clk 0:02:46]}  Be6 {[%clk 0:01:18]} 22. Rha1 {[%clk 0:02:46]}  h5 {[%clk 0:00:53]} 23. f3 {[%clk 0:02:44]}  hxg4 {[%clk 0:00:52]} 24. hxg4 {[%clk 0:02:45]}  Rb8 {[%clk 0:00:46]} 25. R1a4 {[%clk 0:02:44]}  g5 {[%clk 0:00:32]} 26. Bg3 {[%clk 0:02:43]}  Bf8 {[%clk 0:00:31]} 27. Rxa7 {[%clk 0:02:43]}  Bg7 {[%clk 0:00:32]} 28. Ra8 {[%clk 0:02:36]}  Rxa8 {[%clk 0:00:26]} 29. Rxa8+ {[%clk 0:02:37]}  Kh7 {[%clk 0:00:27]} 30. Ra6 {[%clk 0:02:37]}  Bxe5 {[%clk 0:00:25]} 31. Bxe5 {[%clk 0:02:24]}  Nxe5 {[%clk 0:00:26]} 32. f4 {[%clk 0:02:22]}  gxf4 {[%clk 0:00:17]} 33. exf4 {[%clk 0:02:22]}  Bxg4+ {[%clk 0:00:18]} 34. Kf2 {[%clk 0:02:20]}  Nd3+ {[%clk 0:00:17]} 35. Kg3 {[%clk 0:02:21]}  Bf5 {[%clk 0:00:13]} 36. Rxc6 {[%clk 0:02:20]}  Nxb4 {[%clk 0:00:14]} 37. Rb6 {[%clk 0:02:20]}  Nc2 {[%clk 0:00:04]} 38. c6 {[%clk 0:02:21]}  Nd4 {[%clk 0:00:02]} 39. c7 {[%clk 0:02:21]}  Ne2+ {[%clk 0:00:02]} 40. Kf3 {[%clk 0:02:20]}  Nd4+ {[%clk 0:00:02]} 41. Ke3 {[%clk 0:02:21]}  Nc2+ {[%clk 0:00:01]} 42. Kd2 {[%clk 0:02:21]}  Nd4 {[%clk 0:00:01]} 43. Rf6 {[%clk 0:02:12]} 1-0


[Site "https://www.chess.com"]

[Event "Titled Tuesday Blitz January 31 Late 2023"]
[White "Alex_Sahakyan2006"]
[Black "marik_spb"]
[WhiteElo "2668"]
[BlackElo "2323"]
[Result "1-0"]
[Round "02"]
[TimeControl "180+2"]
[Date "2023.01.31"]
[WhiteClock "0:01:58"]
[BlackClock "0:00:24"]

1. e4 {[%clk 0:03:00]}  e5 {[%clk 0:02:33]} 2. Nf3 {[%clk 0:03:00]}  Nc6 {[%clk 0:02:33]} 3. Bb5 {[%clk 0:02:52]}  a6 {[%clk 0:02:33]} 4. Ba4 {[%clk 0:02:51]}  Nf6 {[%clk 0:02:34]} 5. O-O {[%clk 0:02:50]}  Be7 {[%clk 0:02:34]} 6. Bxc6 {[%clk 0:02:47]}  dxc6 {[%clk 0:02:33]} 7. d3 {[%clk 0:02:47]}  Nd7 {[%clk 0:02:28]} 8. Nbd2 {[%clk 0:02:48]}  O-O {[%clk 0:02:28]} 9. Nc4 {[%clk 0:02:47]}  f6 {[%clk 0:02:27]} 10. Nh4 {[%clk 0:02:47]}  b6 {[%clk 0:02:26]} 11. f4 {[%clk 0:02:45]}  exf4 {[%clk 0:02:25]} 12. Bxf4 {[%clk 0:02:46]}  Nc5 {[%clk 0:02:05]} 13. Be3 {[%clk 0:02:44]}  Ne6 {[%clk 0:02:02]} 14. Nf5 {[%clk 0:02:43]}  c5 {[%clk 0:02:02]} 15. Rf3 {[%clk 0:02:37]}  g6 {[%clk 0:01:59]} 16. Rg3 {[%clk 0:02:34]}  Kh8 {[%clk 0:01:55]} 17. Nxe7 {[%clk 0:02:32]}  Qxe7 {[%clk 0:01:56]} 18. Qd2 {[%clk 0:02:31]}  Bd7 {[%clk 0:01:45]} 19. Bh6 {[%clk 0:02:27]}  Rg8 {[%clk 0:01:39]} 20. Rf1 {[%clk 0:02:26]}  b5 {[%clk 0:01:31]} 21. Ne3 {[%clk 0:02:25]}  Nd4 {[%clk 0:01:24]} 22. Nd5 {[%clk 0:02:23]}  Qe5 {[%clk 0:01:11]} 23. Bf4 {[%clk 0:02:21]}  Qh5 {[%clk 0:01:05]} 24. Nxf6 {[%clk 0:02:20]}  Ne2+ {[%clk 0:01:02]} 25. Kf2 {[%clk 0:02:12]}  Nxf4 {[%clk 0:00:47]} 26. Nxh5 {[%clk 0:02:10]}  Nxh5 {[%clk 0:00:48]} 27. Rf3 {[%clk 0:02:10]}  b4 {[%clk 0:00:27]} 28. Kg1 {[%clk 0:02:03]}  Bg4 {[%clk 0:00:26]} 29. Rf7 {[%clk 0:02:02]}  Be6 {[%clk 0:00:23]} 30. Rxc7 {[%clk 0:01:58]}  Rgf8 {[%clk 0:00:24]} 31. Rxf8+ {[%clk 0:01:57]}  Rxf8 {[%clk 0:00:24]} 32. Qh6 {[%clk 0:01:58]} 1-0


[Site "https://www.chess.com"]

[Event "Titled Tuesday Blitz January 31 Late 2023"]
[White "Melikhov, Evgeny V."]
[Black "Bujisho, Benjamin"]
[WhiteFideId "4122046"]
[BlackFideId "608610"]
[WhiteElo "2269"]
[BlackElo "2338"]
[Result "0-1"]
[Round "02"]
[TimeControl "180+2"]
[Date "2023.01.31"]
[WhiteClock "0:00:01"]
[BlackClock "0:00:38"]

1. d4 {[%clk 0:03:00]}  d6 {[%clk 0:02:58]} 2. e4 {[%clk 0:03:00]}  g6 {[%clk 0:02:48]} 3. c4 {[%clk 0:02:59]}  Bg7 {[%clk 0:02:29]} 4. Nc3 {[%clk 0:02:58]}  Nf6 {[%clk 0:02:28]} 5. f3 {[%clk 0:02:57]}  O-O {[%clk 0:02:28]} 6. Be3 {[%clk 0:02:56]}  c5 {[%clk 0:02:28]} 7. Nge2 {[%clk 0:02:56]}  Nc6 {[%clk 0:02:22]} 8. d5 {[%clk 0:02:55]}  Ne5 {[%clk 0:02:21]} 9. Ng3 {[%clk 0:02:55]}  a6 {[%clk 0:02:18]} 10. a4 {[%clk 0:02:52]}  h5 {[%clk 0:02:07]} 11. Be2 {[%clk 0:02:47]}  h4 {[%clk 0:02:06]} 12. Nf1 {[%clk 0:02:46]}  e6 {[%clk 0:02:00]} 13. Bg5 {[%clk 0:02:42]}  Qa5 {[%clk 0:01:57]} 14. Ra3 {[%clk 0:02:34]}  exd5 {[%clk 0:01:50]} 15. cxd5 {[%clk 0:02:32]}  h3 {[%clk 0:01:47]} 16. Ne3 {[%clk 0:02:25]}  hxg2 {[%clk 0:01:46]} 17. Rg1 {[%clk 0:02:10]}  Bh3 {[%clk 0:01:37]} 18. Nxg2 {[%clk 0:02:07]}  Bxg2 {[%clk 0:01:28]} 19. Rxg2 {[%clk 0:02:06]}  Rfe8 {[%clk 0:01:28]} 20. Kf2 {[%clk 0:01:58]}  c4 {[%clk 0:01:12]} 21. Be3 {[%clk 0:01:35]}  Rac8 {[%clk 0:01:06]} 22. Bd4 {[%clk 0:00:56]}  Nd3+ {[%clk 0:00:57]} 23. Bxd3 {[%clk 0:00:55]}  Ng4+ {[%clk 0:00:57]} 24. Rxg4 {[%clk 0:00:49]}  Bxd4+ {[%clk 0:00:58]} 25. Kg2 {[%clk 0:00:48]}  cxd3 {[%clk 0:00:59]} 26. Qxd3 {[%clk 0:00:46]}  Qb4 {[%clk 0:00:52]} 27. Nd1 {[%clk 0:00:34]}  Bg7 {[%clk 0:00:40]} 28. Rb3 {[%clk 0:00:25]}  Qe1 {[%clk 0:00:40]} 29. Rxb7 {[%clk 0:00:15]}  Rc1 {[%clk 0:00:40]} 30. Qf1 {[%clk 0:00:05]}  Qxf1+ {[%clk 0:00:35]} 31. Kxf1 {[%clk 0:00:05]}  Rxd1+ {[%clk 0:00:36]} 32. Ke2 {[%clk 0:00:06]}  Rb1 {[%clk 0:00:36]} 33. Rf4 {[%clk 0:00:06]}  Rxb2+ {[%clk 0:00:36]} 34. Rxb2 {[%clk 0:00:05]}  Bxb2 {[%clk 0:00:37]} 35. Kd3 {[%clk 0:00:06]}  Be5 {[%clk 0:00:37]} 36. Rh4 {[%clk 0:00:06]}  Rb8 {[%clk 0:00:38]} 37. Rg4 {[%clk 0:00:05]}  Rb3+ {[%clk 0:00:37]} 38. Kc4 {[%clk 0:00:05]}  Rxf3 {[%clk 0:00:37]} 39. h4 {[%clk 0:00:04]}  Rc3+ {[%clk 0:00:34]} 40. Kb4 {[%clk 0:00:04]}  Rc5 {[%clk 0:00:34]} 41. h5 {[%clk 0:00:04]}  a5+ {[%clk 0:00:35]} 42. Kb3 {[%clk 0:00:03]}  Kg7 {[%clk 0:00:36]} 43. hxg6 {[%clk 0:00:03]}  fxg6 {[%clk 0:00:37]} 44. Rg2 {[%clk 0:00:02]}  Rc3+ {[%clk 0:00:37]} 45. Ka2 {[%clk 0:00:02]}  Re3 {[%clk 0:00:38]} 46. Rc2 {[%clk 0:00:01]}  Rxe4 {[%clk 0:00:38]} 0-1


[Site "https://www.chess.com"]

[Event "Titled Tuesday Blitz January 31 Late 2023"]
[White "Leiva, Gianmarco"]
[Black "Vaglio Mattey, Emanuel"]
[WhiteFideId "3804399"]
[BlackFideId "6504167"]
[WhiteElo "2392"]
[BlackElo "2155"]
[Result "1-0"]
[Round "02"]
[TimeControl "180+2"]
[Date "2023.01.31"]
[WhiteClock "0:00:09"]
[BlackClock "0:00:31"]

1. e4 {[%clk 0:02:42]}  c6 {[%clk 0:02:58]} 2. d4 {[%clk 0:02:41]}  d5 {[%clk 0:02:59]} 3. Nc3 {[%clk 0:02:41]}  dxe4 {[%clk 0:03:00]} 4. Nxe4 {[%clk 0:02:42]}  Nf6 {[%clk 0:03:01]} 5. Nxf6+ {[%clk 0:02:41]}  exf6 {[%clk 0:03:02]} 6. c3 {[%clk 0:02:41]}  Bd6 {[%clk 0:03:01]} 7. Bd3 {[%clk 0:02:41]}  O-O {[%clk 0:03:02]} 8. Qc2 {[%clk 0:02:41]}  Re8+ {[%clk 0:03:02]} 9. Ne2 {[%clk 0:02:42]}  h6 {[%clk 0:03:03]} 10. Be3 {[%clk 0:02:40]}  Be6 {[%clk 0:03:01]} 11. Ng3 {[%clk 0:02:12]}  a5 {[%clk 0:02:50]} 12. O-O {[%clk 0:01:52]}  Qc7 {[%clk 0:02:45]} 13. Qd2 {[%clk 0:01:40]}  Bf8 {[%clk 0:02:39]} 14. Bf4 {[%clk 0:01:27]}  Qc8 {[%clk 0:02:28]} 15. Rfe1 {[%clk 0:01:20]}  c5 {[%clk 0:02:16]} 16. Nh5 {[%clk 0:00:51]}  cxd4 {[%clk 0:02:11]} 17. Bxh6 {[%clk 0:00:36]}  dxc3 {[%clk 0:01:39]} 18. bxc3 {[%clk 0:00:36]}  gxh6 {[%clk 0:01:37]} 19. Nxf6+ {[%clk 0:00:35]}  Kh8 {[%clk 0:01:36]} 20. Nxe8 {[%clk 0:00:20]}  Qxe8 {[%clk 0:01:37]} 21. Bf5 {[%clk 0:00:19]}  Nc6 {[%clk 0:01:36]} 22. Bxe6 {[%clk 0:00:18]}  fxe6 {[%clk 0:01:36]} 23. Rab1 {[%clk 0:00:15]}  Qf7 {[%clk 0:01:27]} 24. Re3 {[%clk 0:00:12]}  Rd8 {[%clk 0:01:23]} 25. Qe2 {[%clk 0:00:12]}  e5 {[%clk 0:01:16]} 26. Rf3 {[%clk 0:00:12]}  Qd5 {[%clk 0:01:10]} 27. h3 {[%clk 0:00:10]}  e4 {[%clk 0:00:58]} 28. Rf6 {[%clk 0:00:09]}  Bg7 {[%clk 0:00:57]} 29. Rg6 {[%clk 0:00:07]}  Qd3 {[%clk 0:00:40]} 30. Re1 {[%clk 0:00:05]}  Bxc3 {[%clk 0:00:31]} 31. Rxh6+ {[%clk 0:00:02]}  Kg8 {[%clk 0:00:32]} 32. Qg4+ {[%clk 0:00:02]}  Bg7 {[%clk 0:00:32]} 33. Rg6 {[%clk 0:00:02]}  Qd7 {[%clk 0:00:30]} 34. Rxe4 {[%clk 0:00:02]}  Qxg4 {[%clk 0:00:29]} 35. Rexg4 {[%clk 0:00:02]}  Kh7 {[%clk 0:00:30]} 36. Rxg7+ {[%clk 0:00:02]}  Kh8 {[%clk 0:00:31]} 37. R7g6 {[%clk 0:00:02]}  Rd1+ {[%clk 0:00:32]} 38. Kh2 {[%clk 0:00:02]}  Kh7 {[%clk 0:00:32]} 39. Rg7+ {[%clk 0:00:02]}  Kh8 {[%clk 0:00:33]} 40. Rxb7 {[%clk 0:00:03]}  Ne5 {[%clk 0:00:32]} 41. Rh4+ {[%clk 0:00:03]}  Kg8 {[%clk 0:00:33]} 42. Rb8+ {[%clk 0:00:04]}  Kf7 {[%clk 0:00:33]} 43. Ra4 {[%clk 0:00:04]}  Nc6 {[%clk 0:00:33]} 44. Rb7+ {[%clk 0:00:05]}  Ke8 {[%clk 0:00:33]} 45. Re4+ {[%clk 0:00:06]}  Kd8 {[%clk 0:00:32]} 46. Rb2 {[%clk 0:00:06]}  Kc8 {[%clk 0:00:30]} 47. Ree2 {[%clk 0:00:07]}  Kc7 {[%clk 0:00:29]} 48. Rbd2 {[%clk 0:00:08]}  Ra1 {[%clk 0:00:29]} 49. Rc2 {[%clk 0:00:08]}  Kb7 {[%clk 0:00:28]} 50. Red2 {[%clk 0:00:07]}  Nb4 {[%clk 0:00:28]} 51. Rb2 {[%clk 0:00:07]}  Ka6 {[%clk 0:00:29]} 52. h4 {[%clk 0:00:06]}  Nxa2 {[%clk 0:00:29]} 53. Rxa2 {[%clk 0:00:06]}  Rc1 {[%clk 0:00:29]} 54. h5 {[%clk 0:00:06]}  Rc5 {[%clk 0:00:29]} 55. g4 {[%clk 0:00:06]}  Rc3 {[%clk 0:00:29]} 56. Kg2 {[%clk 0:00:06]}  Kb5 {[%clk 0:00:29]} 57. f3 {[%clk 0:00:07]}  a4 {[%clk 0:00:29]} 58. h6 {[%clk 0:00:08]}  a3 {[%clk 0:00:29]} 59. g5 {[%clk 0:00:08]}  Kb4 {[%clk 0:00:29]} 60. h7 {[%clk 0:00:08]}  Rc6 {[%clk 0:00:30]} 61. h8=Q {[%clk 0:00:08]}  Rc5 {[%clk 0:00:30]} 62. g6 {[%clk 0:00:08]}  Rg5+ {[%clk 0:00:30]} 63. Kf2 {[%clk 0:00:09]}  Rxg6 {[%clk 0:00:31]} 64. Qf8+ {[%clk 0:00:09]} 1-0


[Site "https://www.chess.com"]